fUSD/lending_fUSD_20260128
["ID","MTS","AMOUNT","RATE_DAILY","PERIOD"]
[403855275,1769602256741,-151.0,0.000394,120]
[403855276,1769602256752,-151.0,0.000394,120]
[403855277,1769602256763,-151.0,0.000394,120]
[403855278,1769602256772,-155.247354,0.000394,120]
[403855279,1769602256782,-151.0,0.000394,120]
[403855280,1769602256793,-250.826585,0.000394,120]
[403855281,1769602256802,-151.0,0.000394,120]
[403855282,1769602256811,-151.0,0.000394,120]
[403855283,1769602256821,-151.0,0.000394,120]
[403855284,1769602256831,-151.0,0.000394,120]
[403855285,1769602256841,-151.0,0.000394,120]
[403855286,1769602256852,-262.735455,0.000394,120]
[403855287,1769602256864,-151.0,0.000394,120]
[403855288,1769602256874,-262.735455,0.000394,120]
[403855289,1769602256885,-262.735455,0.000394,120]
[403855290,1769602256895,-262.735455,0.000394,120]
[403855291,1769602256904,-151.0,0.000394,120]
[403855292,1769602256913,-151.0,0.000394,120]
[403855293,1769602256922,-151.0,0.000394,120]
[403855294,1769602256931,-151.0,0.000394,120]
[403855295,1769602256940,-151.0,0.000394,120]
[403855296,1769602256950,-151.0,0.000394,120]
[403855297,1769602256959,-151.0,0.000394,120]
[403855298,1769602256968,-3870.46598797,0.0003988,30]
[403855299,1769602256978,-270.205392,0.0003988,120]
[403855300,1769602256987,-270.205392,0.0003988,120]
[403855301,1769602256996,-270.205392,0.0003988,120]
[403855302,1769602257005,-270.205392,0.0003988,120]
[403855303,1769602257015,-445.488392,0.0003988,120]
[403855304,1769602257023,-445.488392,0.0003988,120]
[403855305,1769602257037,-445.488392,0.0003988,120]
[403855306,1769602257046,-151.0,0.0003988,120]
[403855307,1769602257055,-445.488392,0.0003988,120]
[403855308,1769602257064,-151.0,0.0003988,120]
[403855309,1769602257073,-151.0,0.0003988,120]
[403855310,1769602257082,-151.0,0.0003988,120]
[403855311,1769602257092,-151.0,0.0003988,120]
[403855312,1769602257104,-209.060328,0.0003988,120]
[403855313,1769602257113,-482.101971,0.0003988,120]
[403855314,1769602257122,-482.101971,0.0003988,120]
[403855315,1769602257132,-482.101971,0.0003988,120]
[403855316,1769602257141,-482.101971,0.0003988,120]
[403855317,1769602257150,-1940.763075,0.0003988,120]
[403855318,1769602257160,-1940.763075,0.0003988,120]
[403855319,1769602257170,-1940.763075,0.0003988,120]
[403855320,1769602257179,-1940.763075,0.0003988,120]
[403855321,1769602257189,-151.0,0.0003988,120]
[403855322,1769602257199,-165.461975,0.0003988,120]
[403855323,1769602257209,-166.812761,0.0003988,120]
[403855324,1769602257218,-262.042579,0.0003988,120]
[403855325,1769602257228,-336.522338,0.0003988,90]
[403855326,1769602257237,-336.522338,0.0003988,90]
[403855327,1769602257247,-151.0,0.0003988,120]
[403855328,1769602257256,-336.522338,0.0003988,90]
[403855329,1769602257265,-151.0,0.0003988,120]
[403855330,1769602257275,-336.522338,0.0003988,90]
[403855331,1769602257284,-151.0,0.0003988,120]
[403855332,1769602257293,-886.69078901,0.00039892,2]
[403855333,1769602257302,-10567.71171829,0.00039892,15]
[403855334,1769602257312,-612.96,0.000399,14]
[403855335,1769602257321,-1500.0,0.00039948,14]
[403855336,1769602257331,-508.88989411,0.00039999,30]
[403855337,1769602257340,-151.0,0.0004,120]
[403855338,1769602257351,-200.0,0.0004,120]
[403855339,1769602257367,-425.00431598,0.0004,7]
[403855340,1769602257376,-986.40706832,0.0004,7]
[403855341,1769602257385,-3000.0,0.0004,7]
[403855342,1769602257395,-2646.0,0.0004,7]
[403855343,1769602257404,-200.0,0.0004,120]
[403855344,1769602257413,-151.0,0.0004,21]
[403855345,1769602257422,-151.0,0.0004,120]
[403855346,1769602257431,-500.0,0.0004,120]
[403855347,1769602257440,-150.58464793,0.0004,120]
[403855348,1769602257449,-7379.7161814,0.0004,120]
[403855349,1769602257459,-10092.95348215,0.0004,120]
[403855350,1769602257467,-5000.0,0.0004,30]
[403855351,1769602257476,-7113.53112266,0.0004,7]
[403855352,1769602257486,-50000.0,0.0004,70]
[403855353,1769602257495,-555.45,0.0004,14]
[403855354,1769602257504,-500.0,0.0004,120]
[403855355,1769602257514,-500.0,0.0004,120]
[403855356,1769602257530,-3155.03520602,0.0004,120]
[403855357,1769602257544,-253.0,0.0004,30]
[403855358,1769602257553,-262.097546,0.0004,120]
[403855359,1769602257563,-262.097546,0.0004,120]
[403855360,1769602257571,-262.097546,0.0004,120]
[403855361,1769602257580,-262.097546,0.0004,120]
[403855362,1769602257589,-151.0,0.0004,120]
[403855363,1769602257598,-151.0,0.0004,120]
[403855364,1769602257608,-151.0,0.0004,120]
[403855365,1769602257617,-151.0,0.0004,120]
[403855366,1769602257627,-151.0,0.0004,120]
[403855367,1769602257636,-175.218266,0.0004,120]
[403855368,1769602257646,-175.218266,0.0004,120]
[403855369,1769602257660,-175.218266,0.0004,120]
[403855370,1769602257670,-175.218266,0.0004,120]
[403855371,1769602257681,-214.368609,0.0004,120]
[403855372,1769602257692,-214.368609,0.0004,120]
[403855373,1769602257703,-214.368609,0.0004,120]
[403855374,1769602257712,-151.0,0.0004,120]
[403855375,1769602257722,-214.368609,0.0004,120]
[403855376,1769602257731,-170.870038,0.0004,120]
[403855377,1769602257741,-576.705641,0.0004,120]
[403855378,1769602257751,-356.259469,0.0004,120]
[403855379,1769602257760,-576.705641,0.0004,120]
[403855380,1769602257770,-356.259469,0.0004,120]
[403855381,1769602257780,-631.36,0.0004,120]
[403855382,1769602257789,-576.705641,0.0004,120]
[403855383,1769602257799,-356.259469,0.0004,120]
[403855384,1769602257808,-576.705641,0.0004,120]
[403855385,1769602257818,-356.259469,0.0004,120]
[403855386,1769602257828,-151.0,0.0004,120]
[403855387,1769602257837,-151.0,0.0004,120]
[403855388,1769602257846,-151.0,0.0004,120]
[403855389,1769602257856,-151.0,0.0004,120]
[403855390,1769602257865,-151.0,0.0004,120]
[403855391,1769602257874,-332.38,0.0004,120]
[403855392,1769602257883,-288.032275,0.0004,120]
[403855393,1769602257892,-288.032275,0.0004,120]
[403855394,1769602257902,-288.032275,0.0004,120]
[403855395,1769602257911,-288.032275,0.0004,120]
[403855396,1769602257920,-151.0,0.0004,120]
[403855397,1769602257930,-151.0,0.0004,120]
[403855398,1769602257940,-607.083138,0.0004,120]
[403855399,1769602257949,-378.013308,0.0004,120]
[403855400,1769602257959,-1206.411028,0.0004,120]
[403855401,1769602257969,-607.083138,0.0004,120]
[403855402,1769602257981,-378.013308,0.0004,120]
[403855403,1769602257991,-1206.411028,0.0004,120]
[403855404,1769602258001,-607.083138,0.0004,120]
[403855405,1769602258010,-151.0,0.0004,120]
[403855406,1769602258020,-378.013308,0.0004,120]
[403855407,1769602258034,-151.0,0.0004,120]
[403855408,1769602258044,-607.083138,0.0004,120]
[403855409,1769602258054,-151.0,0.0004,120]
[403855410,1769602258063,-151.0,0.0004,120]
[403855411,1769602258073,-1206.411028,0.0004,120]
[403855412,1769602258083,-378.013308,0.0004,120]
[403855413,1769602258093,-151.0,0.0004,120]
[403855414,1769602258106,-151.0,0.0004,120]
[403855415,1769602258116,-1206.411028,0.0004,120]
[403855416,1769602258125,-151.0,0.0004,120]
[403855417,1769602258135,-151.0,0.0004,120]
[403855418,1769602258146,-151.0,0.0004,120]
[403855419,1769602258156,-289.553454,0.0004,14]
[403855420,1769602258167,-151.0,0.0004,120]
[403855421,1769602258177,-289.553454,0.0004,14]
[403855422,1769602258191,-151.0,0.0004,120]
[403855423,1769602258201,-289.553454,0.0004,14]
[403855424,1769602258212,-151.0,0.0004,120]
[403855425,1769602258222,-295.418402,0.0004,120]
[403855426,1769602258232,-289.553454,0.0004,14]
[403855427,1769602258242,-295.418402,0.0004,120]
[403855428,1769602258252,-295.418402,0.0004,120]
[403855429,1769602258262,-288.64169,0.0004,120]
[403855430,1769602258272,-295.418402,0.0004,120]
[403855431,1769602258282,-288.64169,0.0004,120]
[403855432,1769602258291,-288.64169,0.0004,120]
[403855433,1769602258301,-288.64169,0.0004,120]
[403855434,1769602258311,-151.0,0.0004,120]
[403855435,1769602258321,-151.0,0.0004,120]
[403855436,1769602258330,-609.283592,0.0004,28]
[403855437,1769602258340,-609.283592,0.0004,28]
[403855438,1769602258350,-609.283592,0.0004,28]
[403855439,1769602258360,-609.283592,0.0004,28]
[403855440,1769602258369,-404.790743,0.0004,120]
[403855441,1769602258379,-404.790743,0.0004,120]
[403855442,1769602258389,-1027.0,0.0004,30]
[403855443,1769602258398,-404.790743,0.0004,120]
[403855444,1769602258412,-404.790743,0.0004,120]
[403855445,1769602258421,-151.11,0.00040565,2]
[403855446,1769602258431,-150.0,0.00040565,2]
[403855447,1769602258440,-150.0,0.00040565,2]
[403855448,1769602258450,-150.0,0.00040565,2]
[403855449,1769602258460,-151.0,0.000406,120]
[403855450,1769602258469,-176.93300128,0.00040675,70]
[403855451,1769602258479,-151.0,0.000407,120]
[403855452,1769602258488,-1500.0,0.0004077,14]
[403855453,1769602258499,-949.646,0.000408,120]
[403855454,1769602258509,-2831.0,0.00040846,11]
[403855455,1769602258518,-163.60085745,0.000409,120]
[403855456,1769602258528,-211.0,0.0004093,30]
[403855457,1769602258537,-200.0,0.00041,120]
[403855458,1769602258546,-589.63965289,0.00041,30]
[403855459,1769602258556,-2324.71147493,0.00041,120]
[403855460,1769602258566,-507.89022816,0.00041,7]
[403855461,1769602258576,-304.0,0.00041,120]
[403855462,1769602258586,-2000.0,0.00041,60]
[403855463,1769602258595,-396.97783,0.00041,120]
[403855464,1769602258605,-158.16076747,0.00041,2]
[403855465,1769602258616,-338.33,0.00041,30]
[403855466,1769602258626,-253.0,0.00041,34]
[403855467,1769602258635,-1361.5,0.00041041,120]
[403855468,1769602258645,-859.65,0.00041068,120]
[403855469,1769602258655,-300.0,0.00041068,22]
[403855470,1769602258666,-7033.0,0.00041095,5]
[403855471,1769602258677,-500.0,0.00041095,120]
[403855472,1769602258687,-911.51,0.00041096,120]
[403855473,1769602258697,-228.86,0.00041096,120]
[403855474,1769602258709,-251.66,0.00041096,120]
[403855475,1769602258719,-344.56,0.00041096,120]
[403855476,1769602258729,-151.0,0.000412,120]
[403855477,1769602258739,-1366.53,0.000412,60]
[403855478,1769602258749,-1448.96,0.000413,30]
[403855479,1769602258758,-800.0,0.00041369,120]
[403855480,1769602258768,-800.0,0.00041369,120]
[403855481,1769602258781,-800.0,0.00041369,120]
[403855482,1769602258791,-800.0,0.00041369,120]
[403855483,1769602258800,-800.0,0.00041369,120]
[403855484,1769602258810,-800.0,0.00041369,120]
[403855485,1769602258822,-621.63006044,0.00041369,120]
[403855486,1769602258832,-559.17,0.00041389,30]
[403855487,1769602258842,-172.27,0.00041389,30]
[403855488,1769602258852,-468.96,0.00041389,30]
[403855489,1769602258861,-172.27,0.00041389,30]
[403855490,1769602258870,-200.0,0.000414,120]
[403855491,1769602258879,-152.0,0.0004145,7]
[403855492,1769602258889,-151.0,0.000415,120]
[403855493,1769602258898,-259.94862666,0.000415,120]
[403855494,1769602258908,-1500.0,0.00041592,60]
[403855495,1769602258918,-528.45834852,0.000418,120]
[403855496,1769602258929,-612.96,0.000418,14]
[403855497,1769602258938,-837.0,0.00041876,11]
[403855498,1769602258948,-151.0,0.000419,120]
[403855499,1769602258957,-1717.53,0.000419,14]
[403855500,1769602258967,-151.32367102,0.000419,120]
[403855501,1769602258978,-151.32367101,0.000419,120]
[403855502,1769602258988,-151.32367101,0.000419,120]
[403855503,1769602258998,-200.0,0.00042,120]
[403855504,1769602259007,-500.0,0.00042,30]
[403855505,1769602259016,-500.0,0.00042,120]
[403855506,1769602259026,-523.0,0.00042,120]
[403855507,1769602259036,-288.28,0.00042,120]
[403855508,1769602259045,-548.97,0.00042,120]
[403855509,1769602259055,-481.54656305,0.00042,2]
[403855510,1769602259064,-500.0,0.00042,120]
[403855511,1769602259074,-157.0,0.00042,30]
[403855512,1769602259084,-253.0,0.00042,37]
[403855513,1769602259096,-500.0,0.00042,120]
[403855514,1769602259106,-176.93300128,0.00042081,74]
[403855515,1769602259116,-155.917151,0.00042082,120]
[403855516,1769602259125,-200.0,0.00042082,120]
[403855517,1769602259136,-300.0,0.00042111,30]
[403855518,1769602259145,-5880.0,0.00042112,30]
[403855519,1769602259155,-268.0,0.00042117,16]
[403855520,1769602259165,-151.0,0.000422,120]
[403855521,1769602259175,-782.95,0.00042201,30]
[403855522,1769602259185,-468.85,0.00042211,30]
[403855523,1769602259195,-172.31,0.00042211,30]
[403855524,1769602259205,-500.0,0.000423,120]
[403855525,1769602259215,-915.53060209,0.00042339,120]
[403855526,1769602259225,-2910.201395,0.00042397,7]
[403855527,1769602259234,-1474.423485,0.00042397,7]
[403855528,1769602259244,-4226.846852,0.000424,3]
[403855529,1769602259255,-418.32,0.000424,120]
[403855530,1769602259264,-4606.34,0.000424,14]
[403855531,1769602259274,-200.0,0.000424,15]
[403855532,1769602259283,-300.0,0.00042433,30]
[403855533,1769602259293,-1513.0,0.00042434,16]
[403855534,1769602259302,-638.17150658,0.00042465,120]
[403855535,1769602259313,-208.63,0.000425,120]
[403855536,1769602259322,-151.0,0.000425,120]
[403855537,1769602259332,-264.3,0.000425,120]
[403855538,1769602259342,-220.32609868,0.000425,120]
[403855539,1769602259352,-4606.34,0.000425,14]
[403855540,1769602259362,-1717.53,0.000425,14]
[403855541,1769602259372,-200.0,0.000425,15]
[403855542,1769602259382,-500.0,0.000425,120]
[403855543,1769602259392,-5880.0,0.00042546,30]
[403855544,1769602259401,-500.0,0.00042599,120]
[403855545,1769602259410,-281.13,0.00042599,30]
[403855546,1769602259420,-222.99,0.000426,120]
[403855547,1769602259430,-200.0,0.000426,15]
[403855548,1769602259439,-818.01,0.00042603,30]
[403855549,1769602259448,-300.0,0.00042685,90]
[403855550,1769602259458,-1500.0,0.00042688,60]
[403855551,1769602259468,-363.22063574,0.000427,30]
[403855552,1769602259478,-200.0,0.000427,15]
[403855553,1769602259488,-837.0,0.00042735,16]
[403855554,1769602259497,-30000.0,0.0004275,120]
[403855555,1769602259507,-4132.74,0.0004275,120]
[403855556,1769602259517,-262.98,0.000428,120]
[403855557,1769602259527,-856.0,0.000428,15]
[403855558,1769602259538,-1963.06109984,0.000429,120]
[403855559,1769602259548,-300.0,0.00042904,90]
[403855560,1769602259558,-300.0,0.00042904,90]
[403855561,1769602259567,-211.0,0.0004295,30]
[403855562,1769602259577,-160.67116658,0.00042978,120]
[403855563,1769602259586,-5880.0,0.0004298,30]
[403855564,1769602259595,-518.98609087,0.00042998,30]
[403855565,1769602259605,-151.0,0.00043,120]
[403855566,1769602259614,-500.0,0.00043,2]
[403855567,1769602259625,-200.0,0.00043,120]
[403855568,1769602259634,-30000.0,0.00043,120]
[403855569,1769602259644,-500.0,0.00043,120]
[403855570,1769602259654,-471.0,0.00043,120]
[403855571,1769602259663,-500.97,0.00043,120]
[403855572,1769602259673,-500.0,0.00043,120]
[403855573,1769602259683,-500.0,0.00043,120]
[403855574,1769602259692,-500.0,0.00043,120]
[403855575,1769602259702,-222.51309522,0.00043,120]
[403855576,1769602259712,-5913.9542163,0.00043,120]
[403855577,1769602259722,-20400.0,0.00043,3]
[403855578,1769602259731,-500.0,0.00043,120]
[403855579,1769602259742,-151.0,0.00043,60]
[403855580,1769602259751,-151.0,0.00043,120]
[403855581,1769602259761,-151.0,0.00043,120]
[403855582,1769602259772,-151.0,0.00043,120]
[403855583,1769602259784,-151.0,0.00043,120]
[403855584,1769602259796,-151.0,0.00043,120]
[403855585,1769602259810,-151.0,0.00043,120]
[403855586,1769602259822,-153.232158,0.00043,120]
[403855587,1769602259835,-253.0,0.00043,41]
[403855588,1769602259845,-154.397149,0.00043,120]
[403855589,1769602259856,-485.173103,0.00043,120]
[403855590,1769602259867,-939.192566,0.00043,120]
[403855591,1769602259880,-151.0,0.00043,120]
[403855592,1769602259892,-485.173103,0.00043,120]
[403855593,1769602259904,-939.192566,0.00043,120]
[403855594,1769602259916,-151.0,0.00043,120]
[403855595,1769602259928,-485.173103,0.00043,120]
[403855596,1769602259941,-939.192566,0.00043,120]
[403855597,1769602259952,-485.173103,0.00043,120]
[403855598,1769602259965,-939.192566,0.00043,120]
[403855599,1769602259976,-151.0,0.00043,25]
[403855600,1769602259988,-151.0,0.00043,25]
[403855601,1769602259999,-151.0,0.00043,120]
[403855602,1769602260010,-151.0,0.00043,120]
[403855603,1769602260020,-181.446398,0.00043,120]
[403855604,1769602260033,-151.0,0.00043,120]
[403855605,1769602260049,-233.522491,0.00043,120]
[403855606,1769602260061,-151.0,0.00043,120]
[403855607,1769602260074,-500.0,0.00043,120]
[403855608,1769602260086,-218.387859,0.00043022,120]
[403855609,1769602260103,-218.387859,0.00043022,120]
[403855610,1769602260115,-218.387859,0.00043022,120]
[403855611,1769602260128,-218.387859,0.00043022,120]
[403855612,1769602260141,-151.0,0.00043022,120]
[403855613,1769602260153,-151.0,0.00043022,120]
[403855614,1769602260167,-151.0,0.00043022,120]
[403855615,1769602260180,-1017.45,0.00043022,30]
[403855616,1769602260192,-226.24104598,0.00043097,37]
[403855617,1769602260204,-151.0,0.000431,120]
[403855618,1769602260219,-1080.74937591,0.000431,120]
[403855619,1769602260231,-4606.34,0.000431,14]
[403855620,1769602260243,-1717.53,0.000431,14]
[403855621,1769602260255,-151.0,0.000431,120]
[403855622,1769602260267,-385.967359,0.000431,120]
[403855623,1769602260279,-385.967359,0.000431,120]
[403855624,1769602260301,-151.0,0.000431,120]
[403855625,1769602260313,-385.967359,0.000431,120]
[403855626,1769602260326,-385.967359,0.000431,120]
[403855627,1769602260339,-151.0,0.000431,120]
[403855628,1769602260352,-239.527994,0.000431,120]
[403855629,1769602260373,-239.527994,0.000431,120]
[403855630,1769602260386,-239.527994,0.000431,120]
[403855631,1769602260399,-239.527994,0.000431,120]
[403855632,1769602260413,-151.0,0.000431,30]
[403855633,1769602260425,-181.450683,0.000431,30]
[403855634,1769602260438,-158.486834,0.000431,120]
[403855635,1769602260451,-158.486834,0.000431,120]
[403855636,1769602260463,-158.486834,0.000431,120]
[403855637,1769602260474,-158.486834,0.000431,120]
[403855638,1769602260485,-151.0,0.000431,120]
[403855639,1769602260497,-151.0,0.000431,120]
[403855640,1769602260509,-151.0,0.000431,120]
[403855641,1769602260524,-180.147655,0.000431,120]
[403855642,1769602260538,-180.147655,0.000431,120]
[403855643,1769602260548,-180.147655,0.000431,120]
[403855644,1769602260558,-180.147655,0.000431,120]
[403855645,1769602260569,-151.0,0.000431,120]
[403855646,1769602260579,-182.725996,0.000431,120]
[403855647,1769602260590,-153.225987,0.000431,120]
[403855648,1769602260600,-182.725996,0.000431,120]
[403855649,1769602260612,-153.225987,0.000431,120]
[403855650,1769602260624,-182.725996,0.000431,120]
[403855651,1769602260642,-153.225987,0.000431,120]
[403855652,1769602260654,-151.0,0.000431,120]
[403855653,1769602260665,-182.725996,0.000431,120]
[403855654,1769602260675,-151.0,0.000431,120]
[403855655,1769602260686,-153.225987,0.000431,120]
[403855656,1769602260696,-151.0,0.000431,120]
[403855657,1769602260709,-151.0,0.000431,120]
[403855658,1769602260720,-151.0,0.000431,120]
[403855659,1769602260733,-886.69078901,0.000431,15]
[403855660,1769602260745,-10567.71171829,0.000431,15]
[403855661,1769602260757,-385.7059126,0.000431,2]
[403855662,1769602260769,-39700.48974156,0.000431,2]
[403855663,1769602260780,-152.15367678,0.000431,8]
[403855664,1769602260793,-182.74546326,0.0004311,17]
[403855665,1769602260804,-151.0,0.0004311,120]
[403855666,1769602260816,-151.0,0.0004311,120]
[403855667,1769602260832,-4366.77435165,0.0004311,28]
[403855668,1769602260844,-500.0,0.00043151,2]
[403855669,1769602260856,-151.0,0.00043151,120]
[403855670,1769602260868,-151.0,0.00043151,120]
[403855671,1769602260881,-151.0,0.00043151,120]
[403855672,1769602260893,-270.500104,0.00043151,120]
[403855673,1769602260905,-151.0,0.00043151,120]
[403855674,1769602260917,-151.0,0.00043151,120]
[403855675,1769602260933,-151.0,0.00043151,120]
[403855676,1769602260946,-69014.71899634,0.00043182,2]
[403855677,1769602260960,-151.0,0.00043182,20]
[403855678,1769602260975,-151.0,0.00043182,10]
[403855679,1769602260990,-151.0,0.00043182,120]
[403855680,1769602261004,-151.0,0.00043182,120]
[403855681,1769602261023,-151.0,0.00043182,120]
[403855682,1769602261038,-151.0,0.00043182,120]
[403855683,1769602261053,-151.0,0.00043182,120]
[403855684,1769602261068,-151.0,0.00043182,90]
[403855685,1769602261082,-270.205392,0.00043182,120]
[403855686,1769602261098,-270.205392,0.00043182,120]
[403855687,1769602261117,-270.205392,0.00043182,120]
[403855688,1769602261130,-270.205392,0.00043182,120]
[403855689,1769602261145,-445.488392,0.00043182,120]
[403855690,1769602261160,-445.488392,0.00043182,120]
[403855691,1769602261173,-445.488392,0.00043182,120]
[403855692,1769602261194,-151.0,0.00043182,120]
[403855693,1769602261207,-445.488392,0.00043182,120]
[403855694,1769602261225,-151.0,0.00043182,120]
[403855695,1769602261238,-151.0,0.00043182,120]
[403855696,1769602261252,-151.0,0.00043182,120]
[403855697,1769602261265,-151.0,0.00043182,120]
[403855698,1769602261278,-482.101971,0.00043182,120]
[403855699,1769602261291,-482.101971,0.00043182,120]
[403855700,1769602261304,-482.101971,0.00043182,120]
[403855701,1769602261316,-482.101971,0.00043182,120]
[403855702,1769602261329,-1940.763075,0.00043182,120]
[403855703,1769602261342,-1940.763075,0.00043182,120]
[403855704,1769602261355,-1940.763075,0.00043182,120]
[403855705,1769602261367,-1940.763075,0.00043182,120]
[403855706,1769602261379,-151.0,0.00043182,120]
[403855707,1769602261391,-262.097546,0.00043182,120]
[403855708,1769602261407,-262.097546,0.00043182,120]
[403855709,1769602261419,-262.097546,0.00043182,120]
[403855710,1769602261432,-262.097546,0.00043182,120]
[403855711,1769602261444,-151.0,0.00043182,120]
[403855712,1769602261456,-151.0,0.00043182,120]
[403855713,1769602261468,-151.0,0.00043182,120]
[403855714,1769602261481,-151.0,0.00043182,120]
[403855715,1769602261493,-151.0,0.00043182,120]
[403855716,1769602261506,-175.218266,0.00043182,120]
[403855717,1769602261538,-175.218266,0.00043182,120]
[403855718,1769602261551,-175.218266,0.00043182,120]
[403855719,1769602261564,-214.368609,0.00043182,120]
[403855720,1769602261576,-175.218266,0.00043182,120]
[403855721,1769602261591,-214.368609,0.00043182,120]
[403855722,1769602261603,-214.368609,0.00043182,120]
[403855723,1769602261615,-151.0,0.00043182,120]
[403855724,1769602261628,-214.368609,0.00043182,120]
[403855725,1769602261639,-576.705641,0.00043182,120]
[403855726,1769602261651,-356.259469,0.00043182,120]
[403855727,1769602262845,-576.705641,0.00043182,120]
[403855728,1769602262865,-356.259469,0.00043182,120]
[403855729,1769602262886,-576.705641,0.00043182,120]
[403855730,1769602262912,-356.259469,0.00043182,120]
[403855731,1769602262922,-576.705641,0.00043182,120]
[403855732,1769602262931,-356.259469,0.00043182,120]
[403855733,1769602262940,-151.0,0.00043182,120]
[403855734,1769602262950,-151.0,0.00043182,120]
[403855735,1769602262961,-151.0,0.00043182,120]
[403855736,1769602262970,-174.461527,0.00043182,120]
[403855737,1769602262980,-298.051396,0.00043182,120]
[403855738,1769602262990,-151.0,0.00043182,120]
[403855739,1769602263000,-151.0,0.00043182,120]
[403855740,1769602263010,-151.0,0.00043182,120]
[403855741,1769602263020,-151.0,0.00043182,120]
[403855742,1769602263030,-151.0,0.00043182,120]
[403855743,1769602263046,-262.735455,0.00043182,120]
[403855744,1769602263059,-151.0,0.00043182,120]
[403855745,1769602263070,-262.735455,0.00043182,120]
[403855746,1769602263085,-262.735455,0.00043182,120]
[403855747,1769602263099,-262.735455,0.00043182,120]
[403855748,1769602263109,-151.0,0.00043182,120]
[403855749,1769602263119,-151.0,0.00043182,120]
[403855750,1769602263131,-151.0,0.00043182,120]
[403855751,1769602263142,-151.0,0.00043182,120]
[403855752,1769602263152,-151.0,0.00043182,120]
[403855753,1769602263163,-261.237737,0.00043182,120]
[403855754,1769602263174,-25543.8607,0.00043187,30]
[403855755,1769602263185,-288.032275,0.00043187,120]
[403855756,1769602263195,-288.032275,0.00043187,120]
[403855757,1769602263204,-288.032275,0.00043187,120]
[403855758,1769602263214,-288.032275,0.00043187,120]
[403855759,1769602263224,-151.0,0.00043187,120]
[403855760,1769602263234,-151.0,0.00043187,120]
[403855761,1769602263244,-607.083138,0.00043187,120]
[403855762,1769602263255,-378.013308,0.00043187,120]
[403855763,1769602263265,-1206.411028,0.00043187,120]
[403855764,1769602263274,-607.083138,0.00043187,120]
[403855765,1769602263284,-378.013308,0.00043187,120]
[403855766,1769602263293,-1206.411028,0.00043187,120]
[403855767,1769602263303,-607.083138,0.00043187,120]
[403855768,1769602263313,-151.0,0.00043187,120]
[403855769,1769602263322,-378.013308,0.00043187,120]
[403855770,1769602263332,-151.0,0.00043187,120]
[403855771,1769602263342,-607.083138,0.00043187,120]
[403855772,1769602263352,-151.0,0.00043187,120]
[403855773,1769602263362,-1206.411028,0.00043187,120]
[403855774,1769602263372,-151.0,0.00043187,120]